bitfinex-derivatives/quotes_ETHF0:USTF0_20260203
["timestamp","ask_amount","ask_price","bid_price","bid_amount"]
[1770099373263,5.02054435,2304.5,2303.7,2.44045886]
[1770099373462,2.44982085,2304.7,2303.9,0.21718]
[1770099373663,2.4547039,2304.7,2303.8,2.65763886]
[1770099373863,4.99929186,2304.6,2303.8,2.65763886]
[1770099374064,4.99929186,2304.6,2303.9,0.21718]
[1770099374364,7.44911271,2304.6,2303.9,0.21718]
[1770099374564,7.44911271,2304.6,2304.0,0.21718]
[1770099374865,7.44911271,2304.6,2303.9,0.21718]
[1770099375063,2.44982085,2304.5,2303.6,2.65770886]
[1770099375363,5.01441559,2304.4,2303.7,0.21718]
[1770099375555,5.01441559,2304.4,2303.9,2.65763886]
[1770099375757,2.4547039,2304.7,2303.9,2.65763886]
[1770099375961,0.00488305,2304.7,2304.2,2.44045886]
[1770099376161,2.44982085,2305.5,2304.2,2.44045886]
[1770099376358,2.44982085,2305.5,2304.4,2.65762886]
[1770099376556,2.44982085,2305.5,2304.6,2.44045886]
[1770099376557,7.11368495,2305.5,2304.6,2.44045886]
[1770099376764,7.11368495,2305.5,2304.7,2.65763886]
[1770099377063,7.11368495,2305.5,2305.2,2.65763886]
[1770099377064,0.00324735,2305.5,2305.2,2.65763886]
[1770099377261,2.44982085,2306.1,2305.2,2.6608049]
[1770099377459,2.44982085,2306.1,2305.2,2.4436249]
[1770099377655,7.04110756,2306.0,2305.2,2.4436249]
[1770099378062,2.44982085,2306.0,2305.2,2.6608049]
[1770099378263,4.85123781,2305.9,2305.2,2.6608049]
[1770099378767,4.85123781,2305.9,2305.3,0.21718]
[1770099378961,0.00498514,2306.0,2305.5,0.21718]
[1770099379263,2.44982085,2306.3,2305.4,2.87471886]
[1770099379464,2.44982085,2306.3,2305.4,2.65753886]
[1770099379763,7.41633438,2306.2,2305.4,2.65753886]
[1770099380169,2.45497937,2306.2,2305.5,0.21718]
[1770099380363,4.88186935,2306.1,2305.5,0.21718]
[1770099380766,2.50283022,2306.0,2305.6,0.21718]
[1770099380966,2.50283022,2306.0,2305.5,0.21718]
[1770099381164,2.50283022,2306.0,2305.4,2.65753886]
[1770099381165,2.50283022,2306.0,2305.6,0.21718]
[1770099381358,0.00515852,2306.2,2305.6,0.21718]
[1770099381563,0.00515852,2306.2,2305.4,2.65753886]
[1770099381763,4.78778015,2306.1,2305.5,0.21718]
[1770099382164,4.78778015,2306.1,2305.6,0.21718]
[1770099382359,4.78778015,2306.1,2305.5,0.21718]
[1770099382759,4.78778015,2306.1,2305.6,0.21718]
[1770099382962,4.78778015,2306.1,2305.5,0.21718]
[1770099383165,4.78778015,2306.1,2305.7,0.21718]
[1770099383362,0.00515852,2306.2,2305.8,0.21718]
[1770099383768,0.00515852,2306.2,2305.9,0.21718]
[1770099383966,0.00515852,2306.2,2305.8,0.21718]
[1770099384167,0.00515852,2306.2,2305.8,2.67929659]
[1770099384365,0.00515852,2306.2,2306.1,0.21718]
[1770099384564,0.00515852,2306.2,2305.9,2.46211659]
[1770099384860,0.00515852,2306.2,2306.1,2.67929659]
[1770099385467,0.00515852,2306.2,2305.8,2.67915659]
[1770099387569,8.52e-06,2306.2,2306.0,2.46211659]
[1770099388867,0.1,2306.9,2306.2,2.67912659]
[1770099389166,0.1,2306.9,2306.4,2.46211659]
[1770099389372,1.09020412,2307.7,2306.6,2.67908659]
[1770099389868,4.76052633,2307.4,2306.6,2.67908659]
[1770099390068,5.95073045,2307.6,2306.6,2.67908659]
[1770099390269,1.19020412,2307.5,2306.6,2.67908659]
[1770099390464,6.22096247,2307.5,2306.6,2.67908659]
[1770099390666,1.19020412,2307.5,2306.6,2.67908659]
[1770099390966,5.03075835,2307.4,2306.6,2.67908659]
[1770099391369,4.7142402,2307.5,2306.6,2.67908659]
[1770099391575,1.16892489,2307.7,2306.6,2.67908659]
[1770099391971,4.7142402,2307.4,2306.6,2.67908659]
[1770099392171,5.87827663,2307.6,2306.6,2.67908659]
[1770099392371,1.16403643,2307.6,2306.6,2.67908659]
[1770099392571,4.66924032,2307.3,2306.6,2.67908659]
[1770099392774,4.66924032,2307.5,2306.6,2.67908659]
[1770099393072,1.16403643,2307.6,2306.6,2.67908659]
[1770099393274,4.66924032,2307.5,2306.6,2.67908659]
[1770099393774,4.66924032,2307.5,2306.7,0.21696]
[1770099393976,4.66924032,2307.5,2306.8,2.46211659]
[1770099394178,5.93889964,2307.6,2306.8,2.46211659]
[1770099394483,1.16573979,2307.6,2306.8,2.46211659]
[1770099394677,4.95898534,2307.5,2306.8,2.46211659]
[1770099396676,1.22284223,2307.4,2306.5,2.46211659]
[1770099397080,6.10928329,2307.3,2306.5,2.46211659]
[1770099397278,1.22284223,2307.2,2306.3,5.49911659]
[1770099397678,4.97629342,2307.1,2306.3,5.49911659]
[1770099399080,4.97629342,2307.1,2306.4,2.46211659]
[1770099400275,4.78816513,2307.3,2306.4,2.46211659]
[1770099400482,1.26108469,2307.4,2306.4,2.46211659]
[1770099400882,4.68283835,2307.3,2306.4,2.46211659]
[1770099401082,4.68283835,2307.3,2306.9,2.46211659]
[1770099401284,4.68283835,2307.3,2306.9,0.00464793]
[1770099402078,1.26078743,2307.3,2306.8,0.21695]
[1770099402284,1.2561395,2307.6,2306.8,0.21695]
[1770099402585,4.98557002,2307.2,2306.8,2.67906659]
[1770099402784,6.24170952,2307.6,2306.8,2.67906659]
[1770099402981,1.2561395,2307.4,2306.8,0.00528034]
[1770099403286,6.0453807,2307.3,2306.5,2.46211659]
[1770099403590,1.26447401,2307.3,2306.5,2.46211659]
[1770099404087,4.78090669,2307.2,2306.5,2.46211659]
[1770099404288,4.78090669,2307.2,2306.5,2.46602989]
[1770099408986,1.26522238,2307.1,2306.5,0.0039133]
[1770099409192,1.26522238,2307.1,2306.3,3.037]
[1770099409394,1.2155802,2306.9,2305.9,2.46211659]
[1770099409787,4.56792559,2307.0,2305.9,2.46211659]
[1770099409788,1.2155802,2306.7,2305.9,2.46211659]
[1770099410184,4.56792559,2306.6,2305.9,2.46764703]
[1770099412393,5.02163833,2306.5,2305.9,0.00553044]
[1770099412593,1.18619303,2306.3,2305.5,2.45839064]
[1770099412894,5.01716944,2306.2,2305.5,2.45839064]
[1770099413588,5.01716944,2306.2,2305.5,2.46223383]
[1770099414395,3.83092381,2306.1,2305.5,2.46223383]
[1770099414593,5.01716944,2306.2,2305.5,2.46223383]
[1770099414792,3.83092353,2306.1,2305.5,2.46223383]
[1770099414988,3.68977081,2306.3,2305.5,2.46223383]
[1770099415185,8.7345749,2306.2,2305.5,2.46223383]
[1770099415394,3.83091656,2306.1,2305.5,2.46223383]
[1770099415595,4.67834406,2306.1,2305.5,2.46223383]
[1770099415894,4.67834406,2306.2,2305.5,2.46223383]
[1770099416194,1.12702534,2306.0,2305.5,0.00384319]
[1770099416393,1.13088017,2306.0,2305.5,0.00384319]
[1770099416594,4.90877229,2305.9,2305.5,0.00384319]
[1770099418089,1.123912,2305.8,2305.4,2.0421395]
[1770099418291,1.123912,2305.8,2304.9,0.21713]
[1770099418595,8.98565295,2305.7,2304.9,0.21713]
[1770099418796,5.16087205,2305.7,2304.9,0.21713]
[1770099418998,0.3037725,2305.7,2304.9,0.21713]
[1770099419295,4.85709955,2305.6,2304.9,2.67857468]
[1770099419996,5.12511324,2305.6,2304.9,2.67857468]
[1770099420398,0.26801369,2305.6,2304.9,2.67857468]
[1770099420696,4.77747058,2305.5,2304.9,2.67857468]
[1770099421596,4.86930652,2305.8,2304.9,2.67857468]
[1770099421799,5.12654914,2305.8,2304.9,2.67857468]
[1770099421999,0.25724262,2305.8,2304.9,2.67857468]
[1770099422194,4.86930652,2305.7,2304.9,2.67857468]
[1770099422797,4.54271901,2305.8,2304.9,2.67857468]
[1770099422996,0.26109745,2306.0,2304.9,2.67857468]
[1770099423198,3.81683481,2305.9,2304.9,2.67857468]
[1770099423400,4.54271901,2305.7,2304.9,2.67857468]
[1770099423596,0.23263285,2305.7,2304.9,0.00305404]
[1770099423899,0.23263285,2305.5,2304.9,0.00305404]
[1770099424296,4.58155023,2305.4,2304.9,0.00305404]
[1770099424601,4.59475689,2305.5,2304.9,0.00305404]
[1770099424901,4.82738974,2305.6,2304.9,0.00305404]
[1770099425194,0.23263285,2305.6,2304.9,0.00305404]
[1770099425598,4.97480184,2305.5,2304.9,0.00305404]
[1770099427400,0.1745798,2305.4,2304.6,0.21716]
[1770099427805,4.93833541,2305.3,2304.6,0.21716]
[1770099428498,4.93833541,2305.3,2304.6,0.2219462]
[1770099431401,4.93833541,2305.3,2304.6,2.704701]
[1770099432907,5.05322424,2305.3,2304.6,2.704701]
[1770099433208,0.11488883,2305.3,2304.6,2.704701]
[1770099433403,4.55629481,2305.6,2304.8,2.70822002]
[1770099433608,0.09821839,2305.8,2304.8,2.70822002]
[1770099433907,4.8215816,2305.7,2305.1,2.49109002]
[1770099434102,0.10207322,2306.0,2305.1,2.49109002]
[1770099434305,4.8215816,2305.8,2305.1,2.49109002]
[1770099434604,0.10207322,2306.0,2305.1,2.49109002]
[1770099434805,4.91294895,2305.7,2305.1,2.49109002]
[1770099435006,4.91294895,2305.8,2305.1,2.49109002]
[1770099435201,0.09821839,2305.8,2305.0,0.21712]
[1770099435607,4.97639148,2305.7,2305.0,0.21712]
[1770099435803,4.97639148,2305.7,2304.6,0.0047862]
[1770099435804,4.97639148,2305.7,2305.2,2.49449605]
[1770099436106,4.97639148,2305.9,2305.2,2.49449605]
[1770099436502,0.00385483,2306.0,2305.2,2.49449605]
[1770099436698,4.54065095,2305.9,2305.2,2.49449605]
[1770099438811,1.87458715,2305.9,2305.7,2.70375468]
[1770099439012,1.157e-05,2306.0,2305.8,0.21704]
[1770099439211,1.157e-05,2306.0,2305.8,2.67543064]
[1770099439905,1.157e-05,2306.0,2305.8,0.21704]
[1770099440111,1.157e-05,2306.0,2305.8,2.52820928]
[1770099448018,1.157e-05,2306.0,2305.8,0.21704]
[1770099448220,1.157e-05,2306.0,2305.6,2.31116928]
[1770099449218,1.157e-05,2306.0,2305.8,0.21704]
[1770099449416,1.95794251,2306.0,2304.6,0.0047862]
[1770099449618,8.4007442,2305.9,2304.7,2.31116928]
[1770099449818,4.57495019,2305.9,2304.8,2.31116928]
[1770099450216,4.57495019,2305.9,2305.0,2.31116928]
[1770099450421,6.53288113,2305.9,2305.1,0.21711]
[1770099450621,6.53288113,2305.9,2305.1,2.52827928]
[1770099452122,4.57495019,2305.9,2305.3,2.31116928]
[1770099452817,1.93777853,2305.8,2305.1,2.31116928]
[1770099453023,3.82808803,2305.7,2304.9,2.52829928]
[1770099453218,4.76329405,2305.7,2304.9,2.52829928]
[1770099453414,6.69903548,2305.7,2304.9,2.52829928]
[1770099453618,1.93574143,2305.6,2304.9,2.52829928]
[1770099453823,2.5305433,2305.9,2304.9,2.52829928]
[1770099453824,6.96474185,2305.8,2304.9,2.52829928]
[1770099454023,5.02900042,2305.5,2304.9,2.52829928]
[1770099454424,6.96474185,2305.7,2304.9,2.52829928]
[1770099454624,1.93574143,2305.7,2304.9,2.52829928]
[1770099454825,4.66124187,2305.4,2304.9,2.52829928]
[1770099455026,4.66124187,2305.6,2304.9,2.52829928]
[1770099455227,1.93574143,2305.7,2304.9,2.52829928]
[1770099455427,4.66124187,2305.4,2304.9,2.52829928]
[1770099455629,4.66124187,2305.6,2304.9,2.52829928]
[1770099455828,1.93574143,2305.7,2304.9,2.52829928]
[1770099456028,4.53491986,2305.6,2304.9,2.52829928]
[1770099456329,0.10001157,2306.0,2305.1,2.31116928]
[1770099456529,3.83166917,2305.9,2305.1,2.31116928]
[1770099456729,4.8948667,2305.9,2305.1,2.31116928]
[1770099457230,4.8948667,2305.9,2305.3,2.31116928]
[1770099458830,0.10001157,2306.0,2305.3,2.31116928]
[1770099459030,3.83630893,2305.9,2305.3,2.31116928]
[1770099459232,0.10001157,2306.0,2305.3,2.31116928]
[1770099460335,3.83762201,2305.9,2305.3,2.31116928]
[1770099460636,0.10001157,2306.0,2305.6,2.31116928]
[1770099460933,1.157e-05,2306.0,2305.6,2.52822928]
[1770099462033,2.5305433,2306.7,2305.8,2.31116928]
[1770099462235,3.83937479,2306.7,2306.0,2.31116928]
[1770099462534,8.46334043,2306.7,2306.0,2.52818928]
[1770099462732,3.83937479,2306.6,2306.0,2.52818928]
[1770099462928,0.00414728,2306.6,2306.0,2.52818928]
[1770099463538,2.295325,2306.6,2306.0,0.21702]
[1770099465931,2.5305433,2307.1,2306.5,0.21698]
[1770099466131,2.29117772,2307.2,2306.5,2.52814928]
[1770099466336,4.56684021,2306.9,2306.5,2.52814928]
[1770099466532,4.56684021,2307.1,2306.6,2.31116928]
[1770099466832,2.29117772,2307.5,2306.8,2.31116928]
[1770099467039,3.83996893,2307.4,2306.8,2.52811928]
[1770099467233,4.94147156,2307.4,2306.8,2.53280581]
[1770099467832,2.29117772,2307.3,2306.8,0.22163653]
[1770099468037,2.29117772,2307.3,2306.4,2.31116928]
[1770099468236,7.27958413,2307.2,2306.4,2.31116928]
[1770099468633,2.29117772,2307.2,2306.4,2.31116928]
[1770099468934,2.29117772,2307.0,2306.3,0.217]
[1770099469134,2.29117772,2307.0,2306.3,0.22188849]
[1770099469328,2.29117772,2306.8,2306.3,0.22188849]
[1770099469731,7.15481144,2307.0,2306.3,2.53305777]
[1770099469938,2.29117772,2307.0,2306.3,2.53305777]
[1770099470237,2.52341209,2306.8,2306.3,0.22188849]
[1770099471239,2.44006232,2307.2,2306.3,2.60594483]
[1770099471733,7.34550154,2307.2,2306.3,2.60594483]
[1770099471938,7.34550154,2307.2,2306.5,2.60102634]
[1770099472640,2.44006232,2307.1,2306.5,0.21697]
[1770099473142,2.44006232,2306.9,2306.3,0.00488849]
[1770099473643,4.83269842,2307.0,2305.9,0.21703]
[1770099473644,2.44006232,2306.7,2305.9,0.21703]
[1770099474143,3.06891106,2306.6,2305.9,0.21703]
[1770099474343,2.44006232,2306.5,2305.9,0.21703]
[1770099474536,2.44006232,2306.5,2305.9,0.22086026]
[1770099475246,2.44006232,2306.8,2306.0,2.60107634]
[1770099475545,4.72992348,2306.7,2306.0,2.60107634]
[1770099475746,2.44006232,2306.6,2306.0,0.21702]
[1770099476044,4.72992348,2306.5,2306.0,0.21702]
[1770099476238,4.72992348,2306.5,2306.1,0.21701]
[1770099476444,2.44006232,2306.8,2306.1,2.60106634]
[1770099476842,7.14786859,2306.7,2306.1,0.21701]
[1770099477238,2.44006232,2306.7,2306.1,0.21701]
[1770099477950,2.44006232,2306.7,2306.2,0.21701]
[1770099478445,2.44006232,2307.0,2306.4,0.21698]
[1770099478845,2.44006232,2306.9,2306.4,0.21698]
[1770099480751,2.44006232,2306.7,2305.9,0.22087026]
[1770099481149,4.61751875,2306.6,2305.9,0.22087026]
[1770099481451,7.05758107,2306.6,2305.9,0.22087026]
[1770099481749,2.44006232,2306.6,2305.9,0.22087026]
[1770099482151,4.56077846,2306.5,2305.9,0.22087026]
[1770099482550,2.44006232,2306.9,2306.2,2.38405634]
[1770099482954,4.73731259,2306.8,2306.2,2.38405634]
[1770099484152,4.73731259,2306.8,2306.3,0.21699]
[1770099484348,7.17737491,2306.8,2306.3,0.21699]
[1770099484551,4.21503259,2306.8,2306.2,2.38405634]
[1770099484747,2.44006232,2307.3,2306.6,0.21697]
[1770099485354,2.44006232,2307.3,2306.7,0.21696]
[1770099486457,0.00396782,2307.4,2306.7,0.21696]
[1770099486749,2.54365527,2307.4,2306.7,0.21696]
[1770099488353,2.54147534,2307.2,2306.3,5.71370277]
[1770099489157,2.54147534,2307.2,2306.7,0.21696]
[1770099489354,0.00396782,2307.4,2306.3,5.71370277]
[1770099489656,2.54147534,2307.8,2306.8,5.62229326]
[1770099489856,3.85176809,2307.7,2306.3,5.62229326]
[1770099490157,2.54147534,2307.7,2306.2,5.77620973]
[1770099490357,2.54147534,2307.7,2306.7,0.21696]
[1770099490553,2.54147534,2307.5,2306.7,0.21696]
[1770099490753,2.54147534,2307.3,2305.9,0.00383026]
[1770099491056,2.54147534,2307.1,2306.2,3.922]
[1770099491354,8.57194502,2307.2,2306.2,3.922]
[1770099491355,2.54147534,2306.9,2306.2,3.922]
[1770099492258,2.54147534,2306.9,2306.3,0.217]
[1770099492656,2.54147534,2307.2,2306.3,0.217]
[1770099492860,6.39590881,2307.1,2306.3,0.217]
[1770099493058,2.54147534,2307.1,2306.3,0.217]
[1770099493757,2.54147534,2307.1,2306.5,0.21698]
[1770099496159,2.54519292,2307.4,2306.6,0.21697]
[1770099496457,11.41260918,2307.3,2306.7,0.21695]
[1770099496663,7.55750301,2307.3,2306.7,5.9489804]
[1770099496855,7.55750301,2307.3,2306.7,0.21695]
[1770099497056,2.54147534,2307.2,2306.7,0.21695]
[1770099499558,4.6033204,2307.1,2306.7,0.21695]
[1770099499759,4.6033204,2307.1,2306.2,3.922]
[1770099499964,2.54147534,2307.3,2306.2,3.922]
[1770099500163,2.54147534,2307.3,2306.3,5.67749626]
[1770099500961,2.30129873,2306.8,2305.6,14.49237336]
[1770099501265,2.71220973,2306.9,2304.2,12.89344728]
[1770099501266,2.54519292,2306.4,2305.2,2.49407941]
[1770099501462,2.30129873,2306.2,2305.0,0.21712]
[1770099501663,2.30129873,2306.0,2305.0,0.21712]
[1770099501861,2.30129873,2306.0,2305.0,2.71119941]
[1770099502057,4.61196198,2306.1,2305.3,2.49790967]
[1770099502262,2.30129873,2306.3,2305.3,2.49790967]
[1770099502457,3.84520813,2306.2,2305.3,2.49790967]
[1770099502663,4.87621006,2306.2,2305.6,2.71113941]
[1770099502861,4.87621006,2306.4,2305.6,2.71113941]
[1770099503064,2.30129873,2306.5,2305.8,2.49407941]
[1770099503267,2.30129873,2306.5,2305.7,0.21705]
[1770099503567,7.17750879,2306.4,2305.7,0.21705]
[1770099504071,2.30129873,2306.7,2305.8,5.74064373]
[1770099504368,2.30129873,2306.5,2305.7,0.21705]
[1770099504570,2.30129873,2306.5,2305.7,2.71112941]
[1770099504769,2.30129873,2306.5,2305.8,0.00383026]
[1770099505271,2.30129873,2306.5,2305.9,0.00383026]
[1770099505467,2.30129873,2306.8,2306.2,0.00383026]
[1770099505767,2.30129873,2306.8,2306.0,2.49407941]
[1770099505968,2.30129873,2306.8,2306.1,0.00383026]
[1770099506470,2.30129873,2306.8,2306.2,0.00383026]
[1770099506768,2.30129873,2306.8,2306.1,0.00383026]
[1770099507171,2.30129873,2306.8,2306.2,0.00383026]
[1770099507471,2.30129873,2306.8,2306.1,0.00383026]
[1770099507773,2.30129873,2306.8,2306.2,0.00383026]
[1770099508274,2.30129873,2307.1,2306.3,2.71489967]
[1770099508473,6.14151523,2307.0,2306.3,2.71106941]
[1770099508673,2.30129873,2306.9,2306.3,0.21699]
[1770099508872,2.30129873,2306.9,2305.8,0.21704]
[1770099509173,2.30129873,2306.7,2305.9,5.68938571]
[1770099509470,2.30129873,2306.7,2305.9,8.40050512]
[1770099509670,2.30129873,2306.7,2306.0,0.00383026]
[1770099511168,2.30129873,2306.7,2306.1,0.00383026]
[1770099511370,2.30129873,2306.7,2306.0,0.00383026]
[1770099511870,2.30129873,2306.7,2306.1,0.00383026]
[1770099512066,2.30129873,2306.7,2306.0,0.00383026]
[1770099512472,2.30129873,2306.7,2306.1,0.00383026]
[1770099512667,2.30129873,2306.7,2306.0,0.00383026]
[1770099513172,2.30129873,2306.7,2306.1,0.00383026]
[1770099513367,2.30129873,2306.7,2306.0,0.00383026]
[1770099513775,2.30129873,2306.7,2306.1,0.00383026]
[1770099514073,2.30129873,2306.7,2306.0,0.00383026]
[1770099514476,2.30129873,2306.7,2306.1,0.00383026]
[1770099514678,2.30129873,2306.7,2306.0,0.00383026]
[1770099515378,2.30129873,2306.5,2305.9,0.21704]
[1770099515779,2.30129873,2306.5,2306.0,0.00383026]
[1770099516076,2.30129873,2306.5,2305.9,0.22087026]
[1770099517078,2.30129873,2306.5,2306.0,0.00383026]
[1770099517875,2.30129873,2306.5,2305.9,0.21704]
[1770099518079,2.30129873,2306.3,2305.9,0.21704]
[1770099518480,2.30129873,2306.3,2306.0,0.00383026]
[1770099518679,2.30129873,2306.3,2305.9,0.21704]
[1770099519879,2.30129873,2306.6,2305.9,2.71111941]
[1770099520179,4.59523513,2306.5,2305.9,2.71111941]
[1770099520580,2.30129873,2306.6,2305.9,2.71111941]
[1770099523681,2.30129873,2306.6,2305.9,0.21704]
[1770099524382,2.30129873,2306.6,2305.9,2.71111941]
[1770099525483,2.30129873,2306.6,2305.5,2.544]
[1770099525484,2.30129873,2307.0,2306.3,0.217]
[1770099525779,2.30129873,2306.8,2306.3,0.217]
[1770099527784,2.30129873,2306.8,2306.0,2.49407941]
[1770099527984,2.30129873,2306.8,2306.0,2.71110941]
[1770099528284,2.30129873,2306.8,2306.1,0.21702]
[1770099528686,2.30129873,2307.2,2306.5,2.71105941]
[1770099528984,6.14998007,2307.1,2306.5,2.71105941]
[1770099529184,2.30129873,2307.1,2306.5,2.71105941]
[1770099529983,2.30129873,2307.1,2306.5,0.21698]
[1770099530481,4.9358235,2307.4,2306.6,2.35078562]
[1770099530686,3.85111476,2307.3,2306.6,2.35078562]
[1770099530887,2.39063058,2307.4,2306.6,2.35078562]
[1770099531088,3.85105814,2307.3,2306.6,2.35078562]
[1770099531392,2.39063058,2307.4,2306.6,2.35078562]
[1770099531687,3.84975331,2307.3,2306.6,2.35078562]
[1770099531888,2.39063058,2307.4,2306.6,2.35078562]
[1770099532090,3.8497532,2307.3,2306.6,2.35078562]
[1770099532284,2.39063058,2307.4,2306.7,0.21696]
[1770099532484,3.84910566,2307.3,2306.7,0.22131768]
[1770099532790,2.39063058,2307.4,2306.7,2.72233045]
[1770099532987,3.84898105,2307.3,2306.7,2.72233045]
[1770099533184,2.39063058,2307.4,2306.7,2.72233045]
[1770099533386,3.84822194,2307.3,2306.7,2.72233045]
[1770099533683,2.39063058,2307.4,2306.7,2.72233045]
[1770099534081,0.00325655,2307.5,2306.9,2.71795277]
[1770099534287,5.01826715,2308.0,2307.1,2.50101277]
[1770099534488,3.84802869,2307.9,2307.2,2.71792277]
[1770099534688,2.47307423,2307.7,2307.2,0.21691]
[1770099535184,2.47307423,2308.0,2307.3,2.71791277]
[1770099535390,2.47809573,2308.0,2307.3,2.71791277]
[1770099537188,2.47809573,2308.0,2306.7,0.34440954]
[1770099537189,2.54519292,2308.4,2307.8,2.50101277]
[1770099537490,2.47307423,2309.0,2308.3,2.50101277]
[1770099537691,2.47307423,2309.2,2308.5,2.71779277]
[1770099537888,2.47307423,2309.7,2308.7,2.50101277]
[1770099538194,2.47307423,2309.6,2309.0,0.21674]
[1770099538394,2.47307423,2309.5,2308.8,5.66562235]
[1770099538594,2.47307423,2309.5,2308.8,2.50101277]
[1770099538991,2.47307423,2309.5,2308.7,5.963064]
[1770099539395,2.47307423,2309.3,2308.7,5.963064]
[1770099540399,6.30070537,2309.2,2308.2,2.71783277]
[1770099540594,4.87366881,2309.2,2308.2,2.71783277]
[1770099540794,1.42703656,2309.5,2308.2,2.71783277]
[1770099541294,4.51898511,2309.4,2308.4,2.50101277]
[1770099541496,5.87673007,2309.4,2308.4,2.50101277]
[1770099541690,1.35774496,2309.3,2308.4,2.50101277]
[1770099543499,1.26356725,2309.6,2308.4,2.71780277]
[1770099543798,4.67616697,2309.6,2308.6,2.50101277]
[1770099545900,0.00563605,2309.7,2308.8,2.50101277]
[1770099546506,0.00563605,2309.7,2309.0,2.50101277]
[1770099546904,6.18491517,2309.6,2308.8,2.50101277]
[1770099547300,0.00563605,2309.7,2308.8,2.71777277]
[1770099549205,0.00563605,2309.7,2309.0,0.21674]
[1770099549407,1.3069139,2310.2,2309.3,2.50101277]
[1770099549811,4.78907446,2310.1,2309.3,2.50101277]
[1770099550707,4.79260524,2310.1,2309.3,2.71773277]
[1770099550908,0.00353078,2310.1,2309.3,2.71773277]
[1770099551308,1.25807291,2310.5,2309.5,2.50101277]
[1770099551505,1.2578617,2310.9,2309.5,2.71770277]
[1770099551702,5.88020715,2310.4,2309.5,2.71770277]
[1770099551901,1.2578617,2310.3,2309.0,2.50101277]
[1770099552106,4.88802063,2310.3,2309.2,2.50101277]
[1770099552302,4.88802063,2310.3,2309.7,2.50101277]
[1770099552504,0.00403774,2310.3,2309.6,0.21668]
[1770099552906,0.00403774,2310.3,2309.6,2.71769277]
[1770099553108,0.00403774,2310.3,2309.8,2.50101277]
[1770099553403,1.27481294,2310.3,2309.6,0.21668]
[1770099555212,0.00403774,2310.3,2309.6,2.71769277]
[1770099555809,0.00403774,2310.3,2309.6,0.21668]
[1770099556011,4.88432394,2310.2,2309.6,0.21668]
[1770099556512,4.88432394,2310.2,2309.6,2.71769277]
[1770099556812,0.00403774,2310.3,2309.6,2.71769277]
[1770099557010,0.00403774,2310.3,2309.8,2.50101277]
[1770099557313,0.22196456,2311.0,2310.1,2.50101277]
[1770099557513,1.45258386,2311.0,2310.1,2.50101277]
[1770099557706,4.56197263,2310.9,2310.1,2.50101277]
[1770099558107,4.56197263,2310.9,2310.1,2.50623411]
[1770099558413,4.56562969,2310.9,2310.1,2.50623411]
[1770099559212,4.56562969,2310.9,2310.3,2.50101277]
[1770099559412,5.7661204,2310.9,2310.2,5.90710541]
[1770099559612,1.20049071,2310.8,2310.2,0.21663]
[1770099560012,4.52670582,2310.7,2310.2,0.21663]
[1770099560413,5.72682126,2310.7,2310.2,0.21663]
[1770099560609,4.52670582,2310.7,2310.2,2.726598]
[1770099560914,4.52670582,2310.8,2310.2,0.21663]
[1770099561214,5.92686422,2310.8,2310.2,0.21663]
[1770099561414,4.72674878,2310.8,2310.2,2.726598]
[1770099562612,4.72674878,2310.8,2310.2,0.21663]
[1770099563011,0.00365706,2310.9,2310.2,2.726598]
[1770099563204,0.00365706,2310.9,2310.4,2.509968]
[1770099564315,6.18028254,2310.8,2310.3,0.21662]
[1770099564515,1.22285309,2310.7,2310.1,0.00522134]
[1770099565015,5.52898901,2310.6,2310.1,0.00522134]
[1770099565316,1.00623309,2310.6,2310.1,0.00522134]
[1770099565612,1.00623309,2310.6,2309.9,1.0]
[1770099566317,4.61161775,2310.5,2309.9,1.0]
[1770099566516,4.61161775,2310.5,2309.9,1.0038998]
[1770099566917,0.00365706,2310.9,2310.2,2.509968]
[1770099567119,0.00365706,2310.9,2310.2,2.726598]
[1770099567612,0.00365706,2310.9,2310.4,0.21661]
[1770099567811,0.22196456,2311.0,2310.5,2.509968]
[1770099568222,0.22196456,2311.0,2310.4,0.21661]
[1770099568816,0.22630013,2311.0,2310.4,2.726578]
[1770099569012,0.22630013,2311.0,2309.9,1.0038998]
[1770099569013,0.00433557,2311.0,2310.6,2.509968]
[1770099569219,1.17760756,2312.2,2310.8,2.509968]
[1770099569414,1.13819027,2312.0,2310.7,5.96486762]
[1770099569713,4.5924202,2311.4,2310.7,2.726548]
[1770099570014,1.13819027,2311.8,2310.7,2.726548]
[1770099570320,4.7862383,2311.4,2310.7,2.726548]
[1770099570720,1.14183149,2311.4,2310.2,2.509968]
[1770099570914,6.14072539,2311.3,2310.2,2.509968]
[1770099571116,1.13819027,2311.2,2310.2,2.509968]
[1770099571316,5.00253512,2311.3,2310.2,2.509968]
[1770099571516,5.00253512,2311.1,2310.2,2.509968]
[1770099571717,5.00253512,2311.3,2310.2,2.509968]
[1770099571916,0.00364122,2311.4,2310.2,2.509968]
[1770099572117,1.12795778,2311.4,2310.2,2.509968]
[1770099572413,4.91050931,2311.3,2310.4,2.509968]
[1770099572618,0.00364122,2311.4,2310.4,2.509968]
[1770099572811,0.00364122,2311.4,2310.6,2.509968]
[1770099573009,2.32599551,2311.8,2310.8,2.509968]
[1770099573418,2.32599551,2311.5,2310.7,0.21659]
[1770099573818,2.32599551,2311.3,2310.2,2.726598]
[1770099574117,2.32906591,2311.3,2310.3,2.509968]
[1770099574719,2.32906591,2311.3,2310.3,2.726588]
[1770099576020,2.32906591,2311.3,2310.5,1.0]
[1770099576716,0.0030704,2311.3,2310.8,2.509968]
[1770099578621,0.0030704,2311.3,2310.7,0.21658]
[1770099579021,0.0030704,2311.3,2310.7,2.726548]
[1770099579824,6.35412768,2312.1,2311.2,2.509968]
[1770099579825,2.32599551,2311.8,2311.2,2.509968]
[1770099580122,7.14584329,2311.8,2311.2,2.509968]
[1770099580319,7.14584329,2311.8,2311.1,0.21654]
[1770099580320,4.81984778,2311.8,2311.1,2.726508]
[1770099580520,7.14584329,2311.8,2311.2,0.21654]
[1770099580820,7.14941246,2311.8,2311.2,0.21654]
[1770099581418,4.82341695,2311.8,2311.5,2.509968]
[1770099581624,4.82341695,2311.8,2311.4,0.21652]
[1770099581625,2.32956468,2311.8,2311.4,0.21652]
[1770099581824,0.00356917,2311.8,2311.4,0.21652]
[1770099582026,0.00356917,2311.8,2311.4,2.726488]
[1770099582325,2.32599551,2312.3,2311.4,2.726488]
[1770099582724,7.00644573,2312.3,2311.4,2.726488]
[1770099583118,7.00644573,2312.3,2311.4,2.509968]
[1770099583322,7.01120251,2312.3,2311.5,2.726478]
[1770099583920,2.33075229,2312.3,2311.5,2.726478]
[1770099584322,0.6805723,2312.8,2312.4,2.509968]
[1770099584523,2.32599551,2313.2,2312.4,2.509968]
[1770099584821,2.32599551,2313.2,2312.4,2.726388]
[1770099585029,2.32599551,2313.8,2312.4,2.726388]
[1770099585227,2.32599551,2313.0,2312.4,0.22125346]
[1770099585630,8.92114002,2312.9,2312.4,0.22125346]